[Event "*** SCC Grand Prix: Titled Tuesday Blitz"]
[Site "Chess.com"]
[Date "2020.07.21"]
[Round "2"]
[White "Rodalquilar"]
[Black "MacDaddyMac"]
[Result "0-1"]
[WhiteElo "2631"]
[BlackElo "2390"]
[TimeControl "180+1"]
[EndTime "10:19:17 PDT"]
[Termination "MacDaddyMac won by checkmate"]

1. d4 {[%clk 0:03:00.9]} 1... Nf6 {[%clk 0:03:00]} 2. Bf4 {[%clk 0:03:01]} 2...
e6 {[%clk 0:03:00.4]} 3. e3 {[%clk 0:03:01.2]} 3... c5 {[%clk 0:03:00.9]} 4. c3
{[%clk 0:03:00.7]} 4... Nc6 {[%clk 0:03:01]} 5. Nd2 {[%clk 0:03:00.7]} 5... b6
{[%clk 0:03:00.9]} 6. Ngf3 {[%clk 0:02:59.9]} 6... Bb7 {[%clk 0:03:01.1]} 7. Bd3
{[%clk 0:03:00.2]} 7... Be7 {[%clk 0:03:01.2]} 8. h3 {[%clk 0:02:59.9]} 8... h6
{[%clk 0:03:01.6]} 9. O-O {[%clk 0:03:00.1]} 9... d5 {[%clk 0:03:00]} 10. Qe2
{[%clk 0:02:57.4]} 10... c4 {[%clk 0:02:59.1]} 11. Bc2 {[%clk 0:02:57.3]} 11...
Nh5 {[%clk 0:02:54.2]} 12. Bh2 {[%clk 0:02:57.2]} 12... f5 {[%clk 0:02:53.7]}
13. Ne5 {[%clk 0:02:56.8]} 13... Nxe5 {[%clk 0:02:47.1]} 14. dxe5 {[%clk
0:02:39.1]} 14... g6 {[%clk 0:02:44.3]} 15. g4 {[%clk 0:02:35.2]} 15... Ng7
{[%clk 0:02:39.7]} 16. Ba4+ {[%clk 0:02:35]} 16... Kf7 {[%clk 0:02:36.1]} 17. f4
{[%clk 0:02:34.6]} 17... a6 {[%clk 0:02:33.6]} 18. Bc2 {[%clk 0:02:33.5]} 18...
h5 {[%clk 0:02:30.3]} 19. Nf3 {[%clk 0:02:23.6]} 19... hxg4 {[%clk 0:02:25.7]}
20. hxg4 {[%clk 0:02:23.5]} 20... b5 {[%clk 0:02:21.4]} 21. Nd4 {[%clk
0:02:22.4]} 21... Rh4 {[%clk 0:02:08.8]} 22. gxf5 {[%clk 0:01:50.7]} 22... gxf5
{[%clk 0:02:08.7]} 23. Rf2 {[%clk 0:01:50.7]} 23... Qh8 {[%clk 0:02:01.3]} 24.
Rg2 {[%clk 0:01:49.8]} 24... Rg8 {[%clk 0:01:56.4]} 25. Nf3 {[%clk 0:01:46.4]}
25... Rh3 {[%clk 0:01:30.1]} 26. Nd4 {[%clk 0:01:45]} 26... Nh5 {[%clk
0:01:24.2]} 27. Rxg8 {[%clk 0:01:40.6]} 27... Qxg8+ {[%clk 0:01:20.3]} 28. Qg2
{[%clk 0:01:40.9]} 28... Qxg2+ {[%clk 0:01:09.3]} 29. Kxg2 {[%clk 0:01:41.8]}
29... Rxe3 {[%clk 0:01:09.5]} 30. Bd1 {[%clk 0:01:33.5]} 30... Ng7 {[%clk
0:00:56.5]} 31. Bg1 {[%clk 0:01:14.8]} 31... Rd3 {[%clk 0:00:56]} 32. Bc2 {[%clk
0:01:14.4]} 32... Rd2+ {[%clk 0:00:55.7]} 33. Bf2 {[%clk 0:00:59.4]} 33... Bc5
{[%clk 0:00:50.8]} 34. Rc1 {[%clk 0:00:59.1]} 34... Bxd4 {[%clk 0:00:22.9]} 35.
cxd4 {[%clk 0:01:00]} 35... Nh5 {[%clk 0:00:22.9]} 36. Kf3 {[%clk 0:00:58.7]}
36... Nxf4 {[%clk 0:00:21.3]} 37. Be3 {[%clk 0:00:58.8]} 37... Rxc2 {[%clk
0:00:13.3]} 38. Rxc2 {[%clk 0:00:58.5]} 38... Nd3 {[%clk 0:00:12.6]} 39. Rh2
{[%clk 0:00:55.3]} 39... Kg7 {[%clk 0:00:10.8]} 40. Bg5 {[%clk 0:00:52]} 40...
b4 {[%clk 0:00:05.8]} 41. Bf6+ {[%clk 0:00:52.1]} 41... Kg6 {[%clk 0:00:05]} 42.
Rg2+ {[%clk 0:00:52.2]} 42... Kh6 {[%clk 0:00:04.7]} 43. Ke3 {[%clk 0:00:39.6]}
43... Bc6 {[%clk 0:00:03.1]} 44. b3 {[%clk 0:00:19.7]} 44... Bb5 {[%clk
0:00:02.4]} 45. bxc4 {[%clk 0:00:18.1]} 45... Bxc4 {[%clk 0:00:02.9]} 46. Rh2+
{[%clk 0:00:10.6]} 46... Kg6 {[%clk 0:00:01.9]} 47. Rg2+ {[%clk 0:00:11.5]}
47... Kh6 {[%clk 0:00:02]} 48. Rg8 {[%clk 0:00:10.6]} 48... f4+ {[%clk
0:00:01.7]} 49. Kf3 {[%clk 0:00:09.6]} 49... Bxa2 {[%clk 0:00:01.5]} 50. Kg4
{[%clk 0:00:08.7]} 50... Bc4 {[%clk 0:00:02.4]} 51. Rb8 {[%clk 0:00:03.7]} 51...
b3 {[%clk 0:00:02.4]} 52. Rb7 {[%clk 0:00:04.2]} 52... Nf2+ {[%clk 0:00:02.6]}
53. Kxf4 {[%clk 0:00:04]} 53... Nd3+ {[%clk 0:00:03]} 54. Kg4 {[%clk 0:00:04.1]}
54... Nf2+ {[%clk 0:00:03.4]} 55. Kf3 {[%clk 0:00:04.2]} 55... Nd3 {[%clk
0:00:03.9]} 56. Kg4 {[%clk 0:00:04.3]} 56... Nf2+ {[%clk 0:00:03.6]} 57. Kh4
{[%clk 0:00:05.2]} 57... Kg6 {[%clk 0:00:03.4]} 58. Rg7+ {[%clk 0:00:04.6]}
58... Kf5 {[%clk 0:00:03.8]} 59. Rg2 {[%clk 0:00:04.8]} 59... Nd3 {[%clk
0:00:03.4]} 60. Be7 {[%clk 0:00:03.9]} 60... b2 {[%clk 0:00:03.8]} 61. Rg1
{[%clk 0:00:04.6]} 61... Ba2 {[%clk 0:00:03.9]} 62. Rg5+ {[%clk 0:00:03.8]}
62... Ke4 {[%clk 0:00:04.1]} 63. Rg4+ {[%clk 0:00:04.7]} 63... Ke3 {[%clk
0:00:04.7]} 64. Bg5+ {[%clk 0:00:05.5]} 64... Ke2 {[%clk 0:00:04.9]} 65. Rg2+
{[%clk 0:00:05.9]} 65... Kd1 {[%clk 0:00:05.5]} 66. Rd2+ {[%clk 0:00:05.9]}
66... Ke1 {[%clk 0:00:05.3]} 67. Rxd3 {[%clk 0:00:05.4]} 67... b1=Q {[%clk
0:00:05.7]} 68. Re3+ {[%clk 0:00:06.3]} 68... Kd1 {[%clk 0:00:06.1]} 69. Rd3+
{[%clk 0:00:06.5]} 69... Kc2 {[%clk 0:00:06.5]} 70. Rd2+ {[%clk 0:00:06.2]}
70... Kc3 {[%clk 0:00:07.1]} 71. Rf2 {[%clk 0:00:04.7]} 71... Qh7+ {[%clk
0:00:07.2]} 72. Kg3 {[%clk 0:00:04.7]} 72... Bb1 {[%clk 0:00:07.8]} 73. Rf3+
{[%clk 0:00:04.7]} 73... Bd3 {[%clk 0:00:06.8]} 74. Bf6 {[%clk 0:00:05.6]} 74...
Qg6+ {[%clk 0:00:06.5]} 75. Kf4 {[%clk 0:00:05.9]} 75... Kd2 {[%clk 0:00:06.5]}
76. Rf2+ {[%clk 0:00:05.6]} 76... Ke1 {[%clk 0:00:06.3]} 77. Ra2 {[%clk
0:00:04]} 77... Qf5+ {[%clk 0:00:05.6]} 78. Ke3 {[%clk 0:00:04.2]} 78... Qe4#
{[%clk 0:00:05.4]} 0-1

[Event "*** SCC Grand Prix: Titled Tuesday Blitz"]
[Site "Chess.com"]
[Date "2020.07.21"]
[Round "2"]
[White "Margarita2907"]
[Black "ketster"]
[Result "1/2-1/2"]
[WhiteElo "2087"]
[BlackElo "2376"]
[TimeControl "180+1"]
[EndTime "10:19:19 PDT"]
[Termination "Game drawn - insufficient material"]

1. e4 {[%clk 0:02:59]} 1... e5 {[%clk 0:03:00]} 2. Nf3 {[%clk 0:02:58.9]} 2...
Nc6 {[%clk 0:02:59.1]} 3. Bc4 {[%clk 0:02:57.2]} 3... Nf6 {[%clk 0:02:59]} 4. d3
{[%clk 0:02:55.1]} 4... Be7 {[%clk 0:02:56]} 5. O-O {[%clk 0:02:53.2]} 5... O-O
{[%clk 0:02:55.9]} 6. h3 {[%clk 0:02:52]} 6... d5 {[%clk 0:02:54.6]} 7. exd5
{[%clk 0:02:46.5]} 7... Nxd5 {[%clk 0:02:55.5]} 8. Re1 {[%clk 0:02:33.4]} 8...
Nb6 {[%clk 0:02:55.2]} 9. Bb3 {[%clk 0:02:28.5]} 9... a5 {[%clk 0:02:52.9]} 10.
a4 {[%clk 0:02:27.1]} 10... Nd7 {[%clk 0:02:45.5]} 11. Nbd2 {[%clk 0:02:23.5]}
11... Kh8 {[%clk 0:02:38.2]} 12. Nc4 {[%clk 0:02:20.6]} 12... f6 {[%clk
0:02:37.8]} 13. Ne3 {[%clk 0:02:18.8]} 13... Nc5 {[%clk 0:02:37.1]} 14. Bc4
{[%clk 0:02:15.3]} 14... f5 {[%clk 0:01:58.6]} 15. Nd5 {[%clk 0:02:06.1]} 15...
e4 {[%clk 0:01:51.8]} 16. dxe4 {[%clk 0:02:01.6]} 16... fxe4 {[%clk 0:01:50.3]}
17. Nxe7 {[%clk 0:02:01.3]} 17... Qxd1 {[%clk 0:01:12.1]} 18. Rxd1 {[%clk
0:01:59.9]} 18... exf3 {[%clk 0:01:12.4]} 19. Nxc6 {[%clk 0:01:57.6]} 19... bxc6
{[%clk 0:01:11.3]} 20. Be3 {[%clk 0:01:49.1]} 20... Ne4 {[%clk 0:00:47.9]} 21.
Rd4 {[%clk 0:01:47.1]} 21... Nd6 {[%clk 0:00:45.8]} 22. Bb3 {[%clk 0:01:39.3]}
22... fxg2 {[%clk 0:00:45.3]} 23. Kxg2 {[%clk 0:01:38.8]} 23... Bf5 {[%clk
0:00:45.3]} 24. Rad1 {[%clk 0:01:37.4]} 24... Rae8 {[%clk 0:00:44.9]} 25. R4d2
{[%clk 0:01:28]} 25... Be4+ {[%clk 0:00:44.6]} 26. Kh2 {[%clk 0:01:26.4]} 26...
Nf5 {[%clk 0:00:34.3]} 27. Bc5 {[%clk 0:01:23.4]} 27... Nh4 {[%clk 0:00:23.2]}
28. Bxf8 {[%clk 0:01:19.7]} 28... Nf3+ {[%clk 0:00:22.8]} 29. Kg3 {[%clk
0:01:18.2]} 29... Nxd2 {[%clk 0:00:17.7]} 30. Rxd2 {[%clk 0:01:18.6]} 30... Rxf8
{[%clk 0:00:18.1]} 31. f4 {[%clk 0:01:05.5]} 31... h6 {[%clk 0:00:18.4]} 32. Rd7
{[%clk 0:01:03.4]} 32... Rc8 {[%clk 0:00:14.3]} 33. Re7 {[%clk 0:00:59.9]} 33...
Bf5 {[%clk 0:00:13.4]} 34. Re5 {[%clk 0:00:59.5]} 34... g6 {[%clk 0:00:09.9]}
35. Rxa5 {[%clk 0:00:58.8]} 35... Kg7 {[%clk 0:00:09.5]} 36. Re5 {[%clk
0:00:51.7]} 36... Kf6 {[%clk 0:00:09.8]} 37. a5 {[%clk 0:00:42.7]} 37... Ra8
{[%clk 0:00:09.2]} 38. Rc5 {[%clk 0:00:40.2]} 38... Be4 {[%clk 0:00:09.1]} 39.
Kf2 {[%clk 0:00:38.1]} 39... Re8 {[%clk 0:00:08.1]} 40. a6 {[%clk 0:00:30]}
40... Ra8 {[%clk 0:00:07.7]} 41. Ke3 {[%clk 0:00:29.6]} 41... Bg2 {[%clk
0:00:07.8]} 42. Bc4 {[%clk 0:00:26.8]} 42... Ke7 {[%clk 0:00:05.1]} 43. Kf2
{[%clk 0:00:20.8]} 43... Kd6 {[%clk 0:00:03.6]} 44. Ra5 {[%clk 0:00:19.5]} 44...
Bxh3 {[%clk 0:00:03.9]} 45. b4 {[%clk 0:00:18.6]} 45... Be6 {[%clk 0:00:04.1]}
46. Bxe6 {[%clk 0:00:17.9]} 46... Kxe6 {[%clk 0:00:05]} 47. c4 {[%clk
0:00:17.1]} 47... Kd6 {[%clk 0:00:05.1]} 48. b5 {[%clk 0:00:17.3]} 48... cxb5
{[%clk 0:00:05.7]} 49. cxb5 {[%clk 0:00:17.5]} 49... Kc5 {[%clk 0:00:06]} 50.
Ke3 {[%clk 0:00:15.8]} 50... Kb6 {[%clk 0:00:06.4]} 51. Ra1 {[%clk 0:00:15.7]}
51... Kxb5 {[%clk 0:00:06.8]} 52. Rc1 {[%clk 0:00:15.7]} 52... c6 {[%clk
0:00:06]} 53. Rg1 {[%clk 0:00:14.9]} 53... Kxa6 {[%clk 0:00:03.7]} 54. Rxg6
{[%clk 0:00:14.4]} 54... Kb5 {[%clk 0:00:03.9]} 55. Rxh6 {[%clk 0:00:14.1]}
55... c5 {[%clk 0:00:04.5]} 56. Rh1 {[%clk 0:00:12.5]} 56... c4 {[%clk
0:00:04.6]} 57. Ke4 {[%clk 0:00:11.8]} 57... Re8+ {[%clk 0:00:03.7]} 58. Kf5
{[%clk 0:00:11.4]} 58... c3 {[%clk 0:00:04.2]} 59. Kg6 {[%clk 0:00:10.5]} 59...
Kc4 {[%clk 0:00:04.7]} 60. f5 {[%clk 0:00:10.5]} 60... c2 {[%clk 0:00:05.2]} 61.
f6 {[%clk 0:00:10.1]} 61... Kc3 {[%clk 0:00:04.3]} 62. Rc1 {[%clk 0:00:09.7]}
62... Rc8 {[%clk 0:00:03.8]} 63. Rxc2+ {[%clk 0:00:09]} 63... Kxc2 {[%clk
0:00:04.1]} 64. f7 {[%clk 0:00:09.3]} 64... Kd3 {[%clk 0:00:04.7]} 65. Kg7
{[%clk 0:00:09.5]} 65... Ke4 {[%clk 0:00:04.9]} 66. f8=Q {[%clk 0:00:09.1]}
66... Rxf8 {[%clk 0:00:05.2]} 67. Kxf8 {[%clk 0:00:09.3]} 1/2-1/2

[Event "*** SCC Grand Prix: Titled Tuesday Blitz"]
[Site "Chess.com"]
[Date "2020.07.21"]
[Round "2"]
[White "Borsuk_Konstantin"]
[Black "Alexander_Zubov"]
[Result "0-1"]
[WhiteElo "2563"]
[BlackElo "2854"]
[TimeControl "180+1"]
[EndTime "10:19:21 PDT"]
[Termination "Alexander_Zubov won on time"]

1. d4 {[%clk 0:03:00.9]} 1... Nf6 {[%clk 0:02:59.3]} 2. c4 {[%clk 0:03:00.9]}
2... g6 {[%clk 0:02:58.2]} 3. Nc3 {[%clk 0:02:59.3]} 3... d5 {[%clk 0:02:58.2]}
4. Nf3 {[%clk 0:02:58.8]} 4... Bg7 {[%clk 0:02:57.9]} 5. Bg5 {[%clk 0:02:58.9]}
5... Ne4 {[%clk 0:02:56.9]} 6. cxd5 {[%clk 0:02:59.4]} 6... Nxg5 {[%clk
0:02:56.7]} 7. Nxg5 {[%clk 0:03:00.2]} 7... e6 {[%clk 0:02:57.1]} 8. Nf3 {[%clk
0:03:00.4]} 8... exd5 {[%clk 0:02:57]} 9. b4 {[%clk 0:03:01]} 9... O-O {[%clk
0:02:53.5]} 10. Qb3 {[%clk 0:02:59.6]} 10... c6 {[%clk 0:02:50.5]} 11. e3 {[%clk
0:02:56.7]} 11... Bg4 {[%clk 0:02:37.3]} 12. Be2 {[%clk 0:02:55.8]} 12... Nd7
{[%clk 0:02:35.9]} 13. h3 {[%clk 0:02:52.5]} 13... Bxf3 {[%clk 0:02:34.2]} 14.
Bxf3 {[%clk 0:02:51.7]} 14... b5 {[%clk 0:02:32.6]} 15. a4 {[%clk 0:02:47]}
15... a6 {[%clk 0:02:32.5]} 16. a5 {[%clk 0:02:33.6]} 16... Re8 {[%clk
0:02:06.5]} 17. O-O {[%clk 0:02:30.3]} 17... Nf8 {[%clk 0:02:04.9]} 18. Ne2
{[%clk 0:01:40.5]} 18... Ne6 {[%clk 0:02:04.1]} 19. Nc1 {[%clk 0:01:36.1]} 19...
Ng5 {[%clk 0:01:58.2]} 20. Qd1 {[%clk 0:01:26]} 20... Bf8 {[%clk 0:01:54.1]} 21.
Nd3 {[%clk 0:01:25.4]} 21... Bd6 {[%clk 0:01:53.7]} 22. Rc1 {[%clk 0:01:18]}
22... Rc8 {[%clk 0:01:52.1]} 23. Nc5 {[%clk 0:01:09.6]} 23... Bxc5 {[%clk
0:01:38.8]} 24. Rxc5 {[%clk 0:01:05.6]} 24... h5 {[%clk 0:01:36.5]} 25. Rc2
{[%clk 0:00:56]} 25... Qd6 {[%clk 0:01:33]} 26. Qd2 {[%clk 0:00:47.8]} 26... Qf6
{[%clk 0:01:19.2]} 27. Qe2 {[%clk 0:00:40.2]} 27... Rcd8 {[%clk 0:01:11.9]} 28.
h4 {[%clk 0:00:34.8]} 28... Nh7 {[%clk 0:00:53.6]} 29. Rfc1 {[%clk 0:00:31.7]}
29... Rd6 {[%clk 0:00:51.7]} 30. g3 {[%clk 0:00:31.4]} 30... Ree6 {[%clk
0:00:49]} 31. Bg2 {[%clk 0:00:29.1]} 31... Qe7 {[%clk 0:00:39]} 32. Rc5 {[%clk
0:00:24.2]} 32... Rf6 {[%clk 0:00:27]} 33. R1c3 {[%clk 0:00:22.1]} 33... Nf8
{[%clk 0:00:24.8]} 34. Bh3 {[%clk 0:00:18.9]} 34... Nd7 {[%clk 0:00:20.4]} 35.
Bxd7 {[%clk 0:00:17.4]} 35... Qxd7 {[%clk 0:00:21.3]} 36. Rc2 {[%clk 0:00:16.4]}
36... Kg7 {[%clk 0:00:21.4]} 37. Kg2 {[%clk 0:00:12.3]} 37... Rde6 {[%clk
0:00:21.3]} 38. Qd1 {[%clk 0:00:11.2]} 38... Qe8 {[%clk 0:00:16.1]} 39. Qe2
{[%clk 0:00:10.3]} 39... Re4 {[%clk 0:00:15.5]} 40. Qd1 {[%clk 0:00:07.8]} 40...
Qd7 {[%clk 0:00:14.2]} 41. R5c3 {[%clk 0:00:06.3]} 41... Ree6 {[%clk 0:00:10.6]}
42. f3 {[%clk 0:00:02.6]} 42... Qe8 {[%clk 0:00:09.8]} 43. Kf2 {[%clk
0:00:02.1]} 43... Rf5 {[%clk 0:00:08.6]} 44. Qd2 {[%clk 0:00:01.6]} 44... Ref6
{[%clk 0:00:08.7]} 45. f4 {[%clk 0:00:01.8]} 45... Qe4 {[%clk 0:00:08.4]} 46.
Qd3 {[%clk 0:00:02.1]} 46... Qh1 {[%clk 0:00:08.2]} 47. Qf1 {[%clk 0:00:02.7]}
47... Qe4 {[%clk 0:00:07.6]} 48. Qg2 {[%clk 0:00:03.1]} 48... Qe8 {[%clk
0:00:07.2]} 49. Qf3 {[%clk 0:00:03.6]} 49... Re6 {[%clk 0:00:07.6]} 50. Qe2
{[%clk 0:00:03.5]} 50... Qd7 {[%clk 0:00:07.9]} 51. Qf3 {[%clk 0:00:04.1]} 51...
Rff6 {[%clk 0:00:07]} 52. Rc5 {[%clk 0:00:04.5]} 52... Re4 {[%clk 0:00:07.1]}
53. Rc1 {[%clk 0:00:04.6]} 53... Rfe6 {[%clk 0:00:07.3]} 54. R1c3 {[%clk
0:00:05.1]} 54... Qe8 {[%clk 0:00:06.6]} 55. Qe2 {[%clk 0:00:04.8]} 55... Rxd4
{[%clk 0:00:06.6]} 56. Qb2 {[%clk 0:00:05.3]} 56... Rde4 {[%clk 0:00:05.6]} 57.
Rxc6 {[%clk 0:00:04.9]} 57... Rxc6 {[%clk 0:00:05.3]} 58. Rxc6+ {[%clk
0:00:04.4]} 58... Kg8 {[%clk 0:00:05.7]} 59. Qc3 {[%clk 0:00:03.6]} 59... Rc4
{[%clk 0:00:06.3]} 60. Rxc4 {[%clk 0:00:03.9]} 60... dxc4 {[%clk 0:00:06.8]} 61.
Qd4 {[%clk 0:00:03.4]} 61... Qc6 {[%clk 0:00:07.2]} 62. Qc5 {[%clk 0:00:03.5]}
62... Qxc5 {[%clk 0:00:05.8]} 63. bxc5 {[%clk 0:00:03.8]} 63... Kf8 {[%clk
0:00:06.6]} 64. e4 {[%clk 0:00:04.2]} 64... Ke7 {[%clk 0:00:06.6]} 65. Ke3
{[%clk 0:00:04.6]} 65... Kd7 {[%clk 0:00:06.7]} 66. Kd4 {[%clk 0:00:05.1]} 66...
Kc6 {[%clk 0:00:07.3]} 67. f5 {[%clk 0:00:05.3]} 67... c3 {[%clk 0:00:03.7]} 68.
Kxc3 {[%clk 0:00:04.2]} 68... Kxc5 {[%clk 0:00:04.6]} 69. Kd3 {[%clk 0:00:02.6]}
69... Kd6 {[%clk 0:00:02.7]} 70. Kd4 {[%clk 0:00:02.5]} 70... gxf5 {[%clk
0:00:03.1]} 71. exf5 {[%clk 0:00:02.7]} 71... f6 {[%clk 0:00:04]} 72. g4 {[%clk
0:00:01.3]} 72... hxg4 {[%clk 0:00:03.8]} 73. h5 {[%clk 0:00:01.9]} 73... Ke7
{[%clk 0:00:04.4]} 74. Ke4 {[%clk 0:00:02]} 74... b4 {[%clk 0:00:04]} 0-1

[Event "*** SCC Grand Prix: Titled Tuesday Blitz"]
[Site "Chess.com"]
[Date "2020.07.21"]
[Round "2"]
[White "chesslh19"]
[Black "Munguntuul_B"]
[Result "0-1"]
[WhiteElo "2168"]
[BlackElo "2492"]
[TimeControl "180+1"]
[EndTime "10:19:26 PDT"]
[Termination "Munguntuul_B won by resignation"]

1. e4 {[%clk 0:03:00.9]} 1... c5 {[%clk 0:02:59.6]} 2. Nf3 {[%clk 0:03:01.5]}
2... e6 {[%clk 0:02:59.4]} 3. d4 {[%clk 0:03:01.7]} 3... cxd4 {[%clk 0:02:59.2]}
4. Nxd4 {[%clk 0:03:02.6]} 4... Nc6 {[%clk 0:02:59.7]} 5. Nb5 {[%clk 0:03:02.4]}
5... d6 {[%clk 0:02:55]} 6. c4 {[%clk 0:03:02.5]} 6... Nf6 {[%clk 0:02:54.5]} 7.
N1c3 {[%clk 0:03:01.3]} 7... a6 {[%clk 0:02:54]} 8. Nd4 {[%clk 0:03:01.5]} 8...
Be7 {[%clk 0:02:53]} 9. Be2 {[%clk 0:03:01]} 9... O-O {[%clk 0:02:52.5]} 10. O-O
{[%clk 0:03:01.2]} 10... Qc7 {[%clk 0:02:52.3]} 11. Be3 {[%clk 0:02:59.5]} 11...
Bd7 {[%clk 0:02:49.5]} 12. Rc1 {[%clk 0:02:57.3]} 12... Ne5 {[%clk 0:02:48.3]}
13. f3 {[%clk 0:02:42.4]} 13... Rac8 {[%clk 0:02:45.4]} 14. Kh1 {[%clk
0:02:25.3]} 14... Qb8 {[%clk 0:02:41.4]} 15. b3 {[%clk 0:02:19.6]} 15... Rfd8
{[%clk 0:02:37.6]} 16. Qd2 {[%clk 0:01:56.6]} 16... Be8 {[%clk 0:02:31.5]} 17.
Rfd1 {[%clk 0:01:54.3]} 17... b6 {[%clk 0:01:50.2]} 18. Bf1 {[%clk 0:01:47.8]}
18... Nc6 {[%clk 0:01:45]} 19. Qf2 {[%clk 0:01:36.2]} 19... Nxd4 {[%clk
0:01:41.3]} 20. Bxd4 {[%clk 0:01:36.2]} 20... Rc6 {[%clk 0:01:34.3]} 21. Na4
{[%clk 0:00:47.5]} 21... b5 {[%clk 0:01:26.6]} 22. cxb5 {[%clk 0:00:21.2]} 22...
axb5 {[%clk 0:01:26]} 23. Nc3 {[%clk 0:00:14.5]} 23... b4 {[%clk 0:01:15]} 24.
Na4 {[%clk 0:00:14.6]} 24... d5 {[%clk 0:00:59.7]} 25. Bb6 {[%clk 0:00:09.9]}
25... Rdc8 {[%clk 0:00:57.2]} 26. Ba7 {[%clk 0:00:10]} 26... Qb7 {[%clk
0:00:54.1]} 27. Rxc6 {[%clk 0:00:10]} 27... Bxc6 {[%clk 0:00:52.6]} 28. e5
{[%clk 0:00:08.4]} 28... Nd7 {[%clk 0:00:51.6]} 29. Bd4 {[%clk 0:00:08.5]} 29...
Bxa4 {[%clk 0:00:49]} 30. bxa4 {[%clk 0:00:08.8]} 30... Bc5 {[%clk 0:00:47]} 31.
h4 {[%clk 0:00:05.1]} 31... Bxd4 {[%clk 0:00:46.1]} 32. Qxd4 {[%clk 0:00:05.3]}
32... Rc2 {[%clk 0:00:43.3]} 33. Bb5 {[%clk 0:00:04]} 33... Nc5 {[%clk
0:00:42.2]} 34. Rb1 {[%clk 0:00:02]} 34... Qc7 {[%clk 0:00:35]} 35. Qxb4 {[%clk
0:00:02.2]} 35... Qxe5 {[%clk 0:00:32.4]} 36. Bf1 {[%clk 0:00:01.9]} 36... h5
{[%clk 0:00:29.8]} 37. Qb8+ {[%clk 0:00:02.1]} 37... Qxb8 {[%clk 0:00:29.2]} 38.
Rxb8+ {[%clk 0:00:03]} 38... Kh7 {[%clk 0:00:30.1]} 39. a5 {[%clk 0:00:03.6]}
39... Rxa2 {[%clk 0:00:29.5]} 40. a6 {[%clk 0:00:03.2]} 40... Nxa6 {[%clk
0:00:26.8]} 41. Bxa6 {[%clk 0:00:03.7]} 41... Rxa6 {[%clk 0:00:22]} 42. Rb7
{[%clk 0:00:04.1]} 42... Kg6 {[%clk 0:00:21.7]} 43. Kg1 {[%clk 0:00:04.6]} 43...
Ra2 {[%clk 0:00:21.1]} 44. Kf1 {[%clk 0:00:04.7]} 44... d4 {[%clk 0:00:20.3]}
45. Rd7 {[%clk 0:00:04.8]} 45... e5 {[%clk 0:00:19.8]} 46. g3 {[%clk 0:00:04.4]}
46... f6 {[%clk 0:00:19.1]} 47. f4 {[%clk 0:00:04]} 47... Kf5 {[%clk 0:00:13.4]}
48. fxe5 {[%clk 0:00:03]} 48... fxe5 {[%clk 0:00:13.1]} 49. Rxg7 {[%clk
0:00:03.5]} 49... d3 {[%clk 0:00:12.8]} 50. Rd7 {[%clk 0:00:03]} 50... Ke4
{[%clk 0:00:12.4]} 51. Re7 {[%clk 0:00:01.4]} 51... Kd4 {[%clk 0:00:11.8]} 52.
Ke1 {[%clk 0:00:01.3]} 52... e4 {[%clk 0:00:11.1]} 53. g4 {[%clk 0:00:01.8]}
53... Ke3 {[%clk 0:00:10.9]} 54. Kf1 {[%clk 0:00:01.4]} 54... Ra1+ {[%clk
0:00:10.9]} 55. Kg2 {[%clk 0:00:01.7]} 55... d2 {[%clk 0:00:11.8]} 56. Rd7
{[%clk 0:00:01.4]} 56... hxg4 {[%clk 0:00:11.5]} 57. Rd6 {[%clk 0:00:01.5]}
57... d1=Q {[%clk 0:00:12.2]} 58. Rxd1 {[%clk 0:00:01]} 58... Rxd1 {[%clk
0:00:11.1]} 59. Kg3 {[%clk 0:00:01.9]} 59... Rg1+ {[%clk 0:00:10.3]} 60. Kh2
{[%clk 0:00:02.4]} 60... Kf2 {[%clk 0:00:09.9]} 61. h5 {[%clk 0:00:02.9]} 61...
g3+ {[%clk 0:00:09]} 62. Kh3 {[%clk 0:00:03.5]} 62... Rh1+ {[%clk 0:00:08.7]}
63. Kg4 {[%clk 0:00:03.6]} 63... g2 {[%clk 0:00:08.5]} 64. h6 {[%clk 0:00:03.4]}
64... g1=Q+ {[%clk 0:00:08.8]} 65. Kf5 {[%clk 0:00:04]} 65... Rh5+ {[%clk
0:00:03.1]} 66. Kxe4 {[%clk 0:00:04.1]} 66... Qg6+ {[%clk 0:00:04]} 67. Kd4
{[%clk 0:00:02.8]} 67... Qe6 {[%clk 0:00:04.9]} 68. h7 {[%clk 0:00:02.5]} 68...
Qe5+ {[%clk 0:00:05.8]} 69. Kd3 {[%clk 0:00:02.6]} 69... Rh4 {[%clk 0:00:06.3]}
70. Kc2 {[%clk 0:00:03.1]} 70... Qe3 {[%clk 0:00:05.9]} 71. Kd1 {[%clk
0:00:03.3]} 71... Kf3 {[%clk 0:00:06.2]} 72. Kc2 {[%clk 0:00:03.4]} 72... Rh2+
{[%clk 0:00:07.1]} 0-1